bitfinex/quotes_ETHUSD_20241231
["timestamp","ask_amount","ask_price","bid_price","bid_amount"]
[1735657603478,5.14858177,3427.4,3424.9,3.34353538]
[1735657603479,3.7961,3426.9,3425.4,0.7991]
[1735657603785,3.7961,3426.9,3425.5,0.06462932]
[1735657604074,2.91867,3426.3,3425.5,0.06462932]
[1735657604375,0.7961,3426.9,3425.6,0.7991]
[1735657604376,3.7961,3426.9,3425.6,0.7991]
[1735657604575,4.51083996,3427.4,3425.9,0.7991]
[1735657604762,4.51083996,3427.4,3426.0,2.98420678]
[1735657604763,2.91804,3427.0,3426.0,2.98420678]
[1735657604970,3.0,3426.9,3426.1,0.7991]
[1735657605274,1.80504639,3427.5,3426.3,0.7991]
[1735657605467,3.0,3427.1,3426.3,0.7991]
[1735657605660,2.91783,3427.2,3426.4,0.06547619]
[1735657605875,2.91783,3427.2,3426.4,0.37831762]
[1735657606050,3.0,3427.1,3426.5,0.86455794]
[1735657606454,4.21177492,3428.3,3426.5,0.86455794]
[1735657606455,2.91729,3427.9,3426.5,0.86455794]
[1735657606785,3.0,3427.1,3426.5,0.7991]
[1735657606992,3.0,3427.5,3426.6,0.06525267]
[1735657607195,3.0,3427.3,3426.5,0.7991]
[1735657607350,5.91834,3426.6,3426.5,0.7991]
[1735657608169,2.91844,3426.5,3425.6,0.7991]
[1735657608351,2.91868,3426.2,3425.6,0.7991]
[1735657609187,2.91877,3426.1,3425.6,0.7991]
[1735657609951,2.91877,3426.1,3425.7,0.06531301]
[1735657610156,5.91902,3425.8,3425.7,0.06531301]
[1735657610358,3.0,3425.7,3425.3,0.7991]
[1735657610632,2.91902,3425.8,3425.4,0.06584576]
[1735657610792,3.0,3426.0,3425.3,0.7991]
[1735657611008,3.0,3426.0,3425.4,0.06584576]
[1735657611215,2.91909,3425.8,3425.3,0.7991]
[1735657611359,2.9192,3425.6,3425.4,0.06584576]
[1735657611695,2.9192,3425.6,3425.3,0.7991]
[1735657612070,2.91909,3425.8,3425.3,0.7991]
[1735657612265,2.91921,3425.6,3425.4,0.06584576]
[1735657612670,2.91921,3425.6,3425.3,0.7991]
[1735657613193,2.91904,3425.8,3425.3,0.7991]
[1735657613366,2.91883,3426.1,3425.3,0.7991]
[1735657613568,2.91871,3426.2,3425.3,0.7991]
[1735657613893,3.0,3426.1,3425.4,0.7597]
[1735657614092,3.0,3426.1,3425.4,1.127624]
[1735657614297,2.91894,3425.9,3425.5,0.06609082]
[1735657614513,3.34353538,3426.2,3425.5,0.06609082]
[1735657614720,5.91919,3425.6,3425.5,0.06609082]
[1735657615019,5.91919,3425.6,3423.9,1.21608599]
[1735657615020,2.91949,3425.3,3425.0,0.7597]
[1735657615419,2.91949,3425.3,3425.1,0.06613613]
[1735657615715,3.0,3425.2,3425.0,0.7597]
[1735657615922,2.91962,3425.1,3425.0,0.7597]
[1735657616077,3.0,3425.0,3424.6,0.7597]
[1735657616415,5.91974,3425.0,3424.6,0.7597]
[1735657618913,2.91928,3425.5,3424.6,0.7597]
[1735657619100,2.9198,3424.9,3424.6,0.7597]
[1735657619273,3.7899,3425.6,3424.6,0.7597]
[1735657619274,3.0,3425.3,3424.6,0.7597]
[1735657619470,2.91936,3425.4,3424.6,0.7597]
[1735657619471,2.91966,3425.1,3424.6,0.7597]
[1735657620111,2.91971,3425.0,3424.6,0.7597]
[1735657620312,3.0,3425.4,3424.1,0.7597]
[1735657620313,2.91979,3424.9,3424.1,0.7597]
[1735657620520,3.0,3425.1,3424.1,1.12773]
[1735657620677,3.0,3425.1,3424.1,0.7597]
[1735657621017,2.91991,3424.8,3424.1,0.7597]
[1735657621321,3.0,3424.7,3424.1,0.7597]
[1735657622026,2.92001,3424.7,3424.1,0.7597]
[1735657622335,3.0,3425.1,3424.1,0.7597]
[1735657622472,2.92013,3424.5,3424.1,0.7597]
[1735657622677,2.92033,3424.3,3424.1,0.7597]
[1735657623097,3.34353538,3424.6,3423.4,0.7597]
[1735657623347,0.7899,3424.3,3422.2,2.21126582]
[1735657623557,3.34353538,3425.5,3422.2,1.48657399]
[1735657623558,3.0,3423.0,3422.2,1.48657399]
[1735657623839,3.0,3423.1,3422.2,1.48657399]
[1735657624016,2.92115,3423.3,3422.2,1.48657399]
[1735657624217,3.0,3422.9,3422.2,1.48657399]
[1735657624436,2.92149,3423.0,3421.8,2.92242]
[1735657624638,3.0,3423.3,3421.9,0.292242]
[1735657624922,0.7899,3423.6,3421.9,0.292242]
[1735657625132,0.7899,3423.6,3422.3,2.92196]
[1735657625323,3.0,3423.4,3422.0,0.06114827]
[1735657625480,3.0,3422.9,3422.4,0.0610751]
[1735657625674,3.0,3423.4,3422.0,2.92226]
[1735657625879,3.0,3423.4,3422.5,0.06105682]
[1735657626080,3.0,3423.4,3421.2,2.92289]
[1735657626290,3.0,3423.4,3421.3,0.7597]
[1735657626491,2.92177,3422.6,3421.6,0.7597]
[1735657626709,3.7899,3422.9,3421.6,0.7597]
[1735657626916,3.0,3422.0,3421.7,0.06120315]
[1735657627115,3.0,3422.6,3421.6,0.7597]
[1735657627316,3.0,3422.1,3421.6,0.7597]
[1735657627517,2.9222,3422.1,3421.6,0.7597]
[1735657627932,0.8302,3422.0,3421.7,0.06120315]
[1735657628094,2.92243,3421.8,3421.7,0.06120315]
[1735657628295,3.0,3422.2,3420.9,0.802]
[1735657628495,2.92201,3422.3,3421.1,2.92302]
[1735657628721,3.0,3422.2,3421.2,0.372502]
[1735657628926,3.34353538,3422.7,3421.5,2.92261]
[1735657629190,3.75178,3422.9,3421.6,0.86523364]
[1735657629191,0.8302,3422.9,3421.6,0.86523364]
[1735657629397,3.0,3422.2,3421.6,0.86523364]
[1735657629708,3.0,3422.7,3421.6,0.86523364]
[1735657629709,0.8302,3422.4,3421.6,0.06323364]
[1735657629904,5.92252,3421.7,3421.6,0.06323364]
[1735657630088,3.34353538,3422.3,3420.8,0.802]
[1735657630089,2.92271,3421.5,3420.8,0.802]
[1735657630293,3.0,3421.2,3420.8,0.802]
[1735657630494,5.92312,3421.0,3420.9,0.06588003]
[1735657630691,2.92312,3421.0,3420.4,0.802]
[1735657630936,2.92279,3421.4,3419.6,0.1741533]
[1735657630937,3.0,3421.4,3419.7,0.802]
[1735657631139,3.34353538,3421.0,3419.8,0.39004633]
[1735657631841,6.26636538,3421.4,3419.7,0.802]
[1735657632040,0.8302,3421.3,3420.2,0.802]
[1735657632241,2.9226,3421.7,3420.5,2.92349]
[1735657632396,0.8302,3421.8,3420.7,2.92337]
[1735657632594,0.8302,3421.8,3420.6,0.292349]
[1735657632595,2.92244,3421.8,3420.8,0.802]
[1735657632959,6.26596538,3421.9,3420.8,0.802]
[1735657633296,0.8302,3421.4,3420.9,0.06588003]
[1735657633431,3.0,3421.2,3420.9,0.06588003]
[1735657633631,3.0,3421.4,3420.4,0.802]
[1735657633846,2.92278,3421.4,3421.0,0.06586173]
[1735657634048,2.92278,3421.4,3420.4,0.802]
[1735657634244,0.8302,3421.7,3421.1,0.06584342]
[1735657634447,3.0,3421.8,3421.1,0.06584342]
[1735657634644,3.0,3421.8,3421.2,0.802]
[1735657634850,2.92244,3421.8,3421.3,0.06580682]
[1735657635074,2.92244,3421.8,3421.2,0.802]
[1735657635246,2.9227,3421.5,3420.5,0.802]
[1735657635571,2.92278,3421.4,3421.3,0.06580682]
[1735657635733,2.92288,3421.3,3420.5,0.802]
[1735657635935,2.9227,3421.5,3420.5,0.802]
[1735657636168,2.92252,3421.7,3420.5,3.72553]
[1735657636393,2.92229,3422.0,3420.8,2.92325]
[1735657636535,2.92229,3422.0,3420.9,0.802]
[1735657636875,2.92237,3421.9,3420.9,0.86859556]
[1735657637472,3.0,3421.9,3420.9,0.86859556]
[1735657637647,3.0,3421.4,3420.9,0.802]
[1735657637845,2.92277,3421.5,3421.0,0.06657725]
[1735657638047,2.92253,3421.7,3421.0,0.06657725]
[1735657638258,3.0,3422.0,3420.9,3.72519]
[1735657638588,2.92218,3422.1,3421.0,0.06657725]
[1735657638805,2.92228,3422.0,3421.0,0.06657725]
[1735657638942,2.92228,3422.0,3420.9,3.72517]
[1735657639140,2.92228,3422.0,3421.1,0.06655895]
[1735657639379,2.92228,3422.0,3421.0,0.06657725]
[1735657639590,2.92228,3422.0,3420.9,3.72517]
[1735657639591,2.92228,3422.0,3421.2,0.06654065]
[1735657639804,2.92228,3422.0,3421.1,0.06655895]
[1735657640010,2.92228,3422.0,3421.0,2.92311]
[1735657640151,2.92228,3422.0,3421.2,0.06697823]
[1735657640351,0.8302,3422.6,3421.2,0.802]
[1735657640553,0.8302,3422.6,3421.1,0.06699654]
[1735657640554,2.92175,3422.6,3421.6,0.802]
[1735657640859,3.0,3422.5,3421.7,0.06688674]
[1735657641063,3.0,3422.5,3421.6,0.802]
[1735657641594,2.92184,3422.5,3421.6,0.802]
[1735657641973,3.0,3422.9,3421.7,0.06669221]
[1735657642173,2.92213,3422.2,3421.7,0.06669221]
[1735657642489,3.0,3421.9,3421.6,0.802]
[1735657642863,3.0,3422.3,3421.7,0.06669221]
[1735657643277,0.7607,3422.2,3421.2,0.7754]
[1735657643589,3.0,3421.9,3421.2,0.7754]
[1735657643793,2.92211,3422.2,3421.2,3.69832]
[1735657644095,2.92217,3422.2,3421.3,0.0667654]
[1735657644390,2.92211,3422.2,3421.3,0.0667654]
[1735657644559,2.9221,3422.2,3421.3,0.0667654]
[1735657645204,3.0,3422.3,3421.3,0.0667654]
[1735657645405,2.92228,3422.0,3421.3,0.0667654]
[1735657645609,3.0,3422.1,3421.3,0.0667654]
[1735657645813,2.92165,3422.8,3421.4,0.7754]
[1735657645814,3.34353538,3422.8,3421.4,0.7754]
[1735657645954,0.7607,3422.9,3421.4,0.7754]
[1735657646153,3.0,3422.6,3421.7,2.92247]
[1735657646457,3.68194,3423.2,3422.1,2.92215]
[1735657646654,4.10423538,3423.2,3422.2,0.06660075]
[1735657646855,3.34353538,3422.8,3421.9,0.7754]
[1735657647103,3.0,3422.2,3421.9,0.7754]
[1735657647254,2.92211,3422.2,3421.3,0.7754]
[1735657647456,3.0,3422.3,3421.4,0.06674711]
[1735657647893,0.7607,3422.5,3420.5,2.9235]
[1735657647894,3.0,3421.9,3420.6,0.7754]
[1735657648063,2.92256,3421.7,3420.6,0.7754]
[1735657648254,5.92261,3421.6,3420.6,3.69886]
[1735657648454,5.92261,3421.6,3420.7,0.06687522]
[1735657648683,3.0,3421.9,3420.7,0.06687522]
[1735657648855,3.0,3421.5,3420.6,0.7754]
[1735657649056,3.0,3421.1,3420.6,0.7754]
[1735657649302,3.0,3421.5,3420.6,0.7754]
[1735657649593,3.0,3421.3,3420.6,0.7754]
[1735657650096,3.0,3421.3,3420.7,0.06687522]
[1735657650395,3.0,3421.1,3420.7,0.06687522]
[1735657650755,3.0,3421.3,3420.6,0.7754]
[1735657651095,3.0,3421.5,3420.6,0.7754]
[1735657651266,2.92243,3421.9,3420.8,2.92328]
[1735657651471,5.92244,3421.8,3421.0,0.7754]
[1735657651666,5.92244,3421.8,3421.1,0.06711471]
[1735657652092,3.0,3421.9,3421.1,0.06711471]
[1735657652293,2.92214,3422.2,3421.1,0.06711471]
[1735657652610,2.92214,3422.2,3421.2,3.69827]
[1735657653014,3.34353538,3422.4,3421.3,2.9898681]
[1735657653209,2.92194,3422.4,3421.4,0.37652681]
[1735657653411,2.92199,3422.4,3421.3,0.0670781]
[1735657653611,0.7607,3422.7,3421.5,0.06704151]
[1735657653795,2.92208,3422.3,3421.5,0.06704151]
[1735657653996,3.0,3422.2,3421.6,0.06702321]
[1735657654196,3.7607,3422.7,3421.6,0.06702321]
[1735657654398,3.7607,3422.7,3421.4,2.92276]
[1735657654399,2.92191,3422.5,3421.4,2.92276]
[1735657654754,3.34353538,3422.8,3421.5,3.75238151]
[1735657654906,2.92186,3422.5,3421.5,3.75238151]
[1735657655090,3.0,3422.2,3421.5,0.82974151]
[1735657655529,2.92186,3422.5,3421.5,1.20500966]
[1735657655832,2.92211,3422.2,3421.5,0.82974151]
[1735657656033,3.34353538,3422.8,3421.5,0.82974151]
[1735657656034,3.0,3422.5,3421.5,0.82974151]
[1735657656240,2.92223,3422.1,3421.5,0.82974151]
[1735657656407,2.92228,3422.0,3421.5,0.7627]
[1735657656790,2.92244,3421.8,3420.7,2.92335]
[1735657657147,2.92244,3421.8,3420.8,4.04547462]
[1735657657362,2.92229,3422.0,3420.8,1.12220462]
[1735657657639,2.92229,3422.0,3421.2,0.7958]
[1735657658022,3.0,3422.1,3421.3,2.98991726]
[1735657658240,3.0,3422.6,3421.3,2.98991726]
[1735657658524,0.58108598,3422.3,3421.3,0.06705726]
[1735657659035,2.92253,3421.7,3421.3,0.06705726]
[1735657659189,0.7876,3422.2,3421.2,0.7958]
[1735657659190,3.0,3421.8,3421.2,0.7958]
[1735657659609,3.0,3421.8,3421.3,0.06426864]
[1735657659964,3.0,3421.8,3421.2,0.7958]
[1735657660121,2.92249,3421.8,3421.4,0.06425034]
[1735657660333,2.92249,3421.8,3421.2,0.7958]
[1735657660334,3.0,3421.6,3421.3,0.06426864]
[1735657660538,2.92263,3421.6,3421.2,0.7958]
[1735657660869,2.92269,3421.5,3421.3,0.06439368]
[1735657661024,5.92278,3421.4,3420.6,0.7958]
[1735657661360,0.7876,3421.3,3420.7,0.0645035]
[1735657661564,2.92322,3420.9,3420.7,0.0645035]
[1735657661763,0.7876,3421.3,3420.2,0.7958]
[1735657661764,3.0,3421.0,3420.2,0.7958]
[1735657661908,2.9231,3421.1,3420.2,0.7958]
[1735657662106,2.92328,3420.9,3420.2,0.7958]
[1735657662305,2.92331,3420.8,3420.3,0.06457674]
[1735657662805,3.0,3421.1,3420.3,0.06457674]
[1735657663148,2.92326,3420.9,3420.2,0.7958]
[1735657663306,2.92307,3421.1,3420.2,0.7958]
[1735657663704,2.0,3421.2,3420.3,0.06457674]
[1735657663953,2.92322,3420.9,3420.3,0.06457674]
[1735657664111,0.7876,3421.3,3420.3,0.06457674]
[1735657664307,2.92353,3420.6,3420.3,0.06457674]
[1735657664515,3.34353538,3420.8,3419.7,0.7958]
[1735657664744,2.92376,3420.3,3419.7,0.7958]
[1735657665226,2.92382,3420.2,3419.8,0.06533544]
[1735657665422,0.7876,3420.4,3419.8,0.06533544]
[1735657665603,2.92382,3420.2,3419.7,0.7958]
[1735657665809,0.7876,3420.4,3419.7,0.7958]
[1735657666221,0.7876,3420.4,3419.8,0.06555791]
[1735657666222,2.92406,3419.9,3419.8,0.06555791]
[1735657666509,2.92406,3419.9,3419.6,0.1741533]
[1735657666705,3.0,3419.8,3419.6,0.1741533]
[1735657667030,3.34353538,3420.4,3418.4,6.27175538]
[1735657667031,5.92525,3418.5,3418.4,0.00292]
[1735657667263,7.78201669,3418.5,3418.4,0.06151173]
[1735657667466,6.71285,3418.5,3418.4,0.06151173]
[1735657667670,3.7876,3418.5,3418.4,0.00292]
[1735657667865,4.3604791,3418.5,3418.4,0.00292]
[1735657668157,4.3604791,3418.5,3418.3,0.005]
[1735657668158,5.92534,3418.4,3418.3,0.005]
[1735657670122,9.26887538,3418.4,3417.3,0.7958]
[1735657670310,3.0,3417.8,3417.0,0.91814549]
[1735657670511,3.34353538,3417.1,3417.0,0.91814549]
[1735657670725,6.34353538,3417.1,3417.0,0.91814549]
[1735657671355,3.0,3417.0,3416.1,0.1741533]
[1735657671579,3.0,3416.3,3416.1,0.1741533]
[1735657671734,2.92679,3416.8,3416.1,0.1741533]
[1735657671935,4.13113538,3417.1,3416.1,0.1741533]
[1735657672292,2.92637,3417.2,3416.2,0.802]
[1735657672459,3.0,3417.1,3416.2,0.802]
[1735657672660,3.0,3417.3,3416.3,0.05876414]
[1735657672992,2.9265,3417.1,3416.3,0.05876414]
[1735657673339,3.0,3417.0,3416.3,0.05876414]
[1735657673694,3.57680694,3417.4,3416.3,0.05876414]
[1735657673995,1.20488582,3417.6,3416.8,2.92663]
[1735657674293,2.92552,3418.2,3416.9,3.72862]
[1735657674490,0.7548,3418.6,3417.0,0.372862]
[1735657674635,0.7548,3418.6,3417.1,0.06103059]
[1735657674840,2.92561,3418.1,3417.1,0.06103059]
[1735657675093,3.34353538,3418.4,3417.1,0.06103059]
[1735657675256,3.34353538,3418.4,3416.9,0.802]
[1735657675458,3.0,3417.9,3416.9,0.802]
[1735657675700,0.8112,3417.8,3416.2,0.8313]
[1735657676047,3.0,3417.4,3416.3,0.0607876]
[1735657676277,0.8112,3417.8,3416.3,0.0607876]
[1735657676478,2.92638,3417.2,3416.3,0.0607876]
[1735657676993,3.0,3416.8,3416.3,0.0607876]
[1735657677282,3.0,3416.4,3416.1,0.1741533]
[1735657677485,3.0,3416.6,3416.1,0.1741533]
[1735657678054,0.25,3418.2,3416.1,0.1741533]
[1735657678055,2.92634,3417.3,3416.2,0.05900592]
[1735657678419,2.9261,3417.6,3416.3,0.8313]
[1735657678700,2.92586,3417.8,3416.7,0.8313]
[1735657678846,3.73642,3418.6,3416.8,2.9267]
[1735657679047,2.925,3418.8,3416.9,0.8313]
[1735657679287,2.9257,3418.0,3417.0,0.89015911]
[1735657679610,2.92573,3418.0,3417.0,0.89015911]
[1735657679809,2.9254,3418.4,3417.1,2.92645]
[1735657679939,3.0,3418.3,3417.3,0.8313]
[1735657680295,0.8112,3419.0,3417.4,0.05878574]
[1735657680785,2.9256,3418.1,3417.4,0.05878574]
[1735657680995,2.92538,3418.4,3417.4,0.05878574]
[1735657681155,0.8112,3419.0,3417.4,0.05878574]
[1735657681156,3.0,3418.3,3417.4,0.05878574]
[1735657681354,4.62673752,3419.0,3417.4,0.05878574]
[1735657681355,2.92578,3417.9,3417.4,0.05878574]
[1735657681547,3.0,3417.9,3417.4,0.05878574]
[1735657681743,3.0,3418.3,3417.3,0.8313]
[1735657681963,0.8112,3418.2,3417.3,0.8313]
[1735657682192,0.8112,3418.2,3416.1,0.1741533]
[1735657682193,0.8112,3418.2,3416.9,0.8313]
[1735657682388,0.8112,3418.2,3416.5,0.8313]
[1735657682389,6.81553752,3418.0,3416.5,0.8313]
[1735657682589,3.8112,3417.9,3416.5,0.8313]
[1735657682920,3.8313,3418.1,3416.5,0.8313]
[1735657682921,2.92567,3418.1,3416.5,0.8313]
[1735657683058,2.92561,3418.1,3416.9,0.8313]
[1735657683255,0.8112,3418.7,3417.0,0.05885911]
[1735657683453,2.92509,3418.7,3417.3,0.8313]
[1735657683710,2.92494,3418.9,3417.7,3.75724]
[1735657683873,2.92447,3419.5,3417.8,0.43443638]
[1735657684064,0.8112,3419.6,3418.1,0.8313]
[1735657684460,3.0,3418.9,3418.1,0.8313]
[1735657684725,3.0,3419.3,3418.1,0.8313]
[1735657684873,3.0,3418.1,3417.7,0.8313]
[1735657685077,3.0,3417.8,3416.5,0.8313]
[1735657685274,2.92621,3417.4,3416.6,0.05893251]
[1735657685490,3.0,3417.6,3416.6,0.05893251]
[1735657685708,2.92646,3417.1,3416.5,0.8313]
[1735657685867,2.92648,3417.1,3416.1,1.0054533]
[1735657686065,2.92648,3417.1,3416.2,0.05900592]
[1735657686268,2.92655,3417.0,3416.1,1.0054533]
[1735657686500,2.9268,3416.7,3416.2,0.05900592]
[1735657686666,2.92699,3416.5,3416.2,0.05900592]
[1735657687108,0.8112,3417.6,3416.1,1.0054533]
[1735657687109,3.0,3416.7,3416.1,1.0054533]
[1735657687308,0.8112,3417.6,3416.1,1.0054533]
[1735657687309,2.92612,3417.5,3416.1,1.0054533]
[1735657687510,3.0,3417.4,3416.1,1.0054533]
[1735657687665,2.92706,3416.4,3416.2,0.05947924]
[1735657687864,2.92632,3417.3,3416.1,1.0054533]
[1735657688078,3.0,3417.1,3416.1,1.0054533]
[1735657688405,2.92656,3417.0,3416.2,0.05966024]
[1735657688959,3.0,3417.2,3416.2,0.05966024]
[1735657689164,2.92647,3417.1,3416.2,0.05966024]
[1735657689392,3.0,3417.1,3416.1,3.9327633]
[1735657689608,3.0,3417.1,3416.3,0.05964189]
[1735657689842,3.0,3417.1,3416.2,0.05966024]
[1735657690060,2.92662,3417.0,3416.4,0.05953999]
[1735657690198,2.92613,3417.5,3416.3,0.05955834]
[1735657690402,2.92638,3417.2,3416.3,0.05955834]
[1735657690673,3.0,3417.1,3416.3,0.4587875]
[1735657690975,0.7971,3417.8,3416.4,0.05949126]
[1735657690976,2.92659,3417.0,3416.4,0.05949126]
[1735657691260,2.92697,3416.5,3416.4,0.05949126]
[1735657691405,5.92722,3416.2,3416.1,0.1741533]
[1735657694356,6.72432,3416.2,3416.1,3.3e-06]
[1735657694567,6.99289175,3416.2,3416.1,3.3e-06]
[1735657694921,7.26166746,3416.2,3416.1,3.3e-06]
[1735657695845,7.26166746,3416.2,3415.1,0.8052]
[1735657695846,0.26857175,3416.2,3415.1,0.8052]
[1735657696090,2.92744,3416.0,3415.1,0.8052]
[1735657696203,3.0,3415.7,3415.2,0.05859234]
[1735657696554,5.92737,3416.1,3415.1,0.8052]
[1735657696702,0.26857175,3415.6,3415.1,0.8052]
[1735657696904,0.26857175,3415.6,3415.2,0.05859234]
[1735657697146,0.26857175,3415.5,3415.1,0.8052]
[1735657697359,0.26857175,3415.5,3415.2,0.05859234]
[1735657697750,0.26857175,3415.5,3415.0,0.005]
[1735657697751,3.0,3415.3,3415.0,0.005]
[1735657697962,3.26857175,3415.4,3415.0,0.005]
[1735657698165,2.928,3415.3,3415.0,0.005]
[1735657698457,5.92817,3415.1,3415.0,0.005]
[1735657699009,6.19674175,3415.1,3415.0,0.005]
[1735657699204,6.19674175,3415.1,3414.2,0.8052]
[1735657699205,6.99384175,3415.1,3414.2,0.8052]
[1735657699406,3.7971,3414.2,3412.7,0.1741533]
[1735657699612,3.0,3413.7,3412.7,0.1741533]
[1735657699906,2.92972,3413.3,3412.7,0.1741533]
[1735657700155,2.92997,3413.0,3412.8,0.05713033]
[1735657700358,3.3727318,3413.2,3412.8,0.05713033]
[1735657700559,6.3727318,3412.8,3412.7,3.63e-06]
[1735657700869,9.3028718,3412.8,3412.7,3.63e-06]
[1735657701206,2.93099,3411.9,3411.0,0.8052]
[1735657701571,2.93099,3411.9,3411.1,0.05532809]
[1735657701706,0.26746279,3411.8,3411.1,0.05532809]
[1735657701907,0.53563724,3411.8,3411.4,2.93132]
[1735657702167,0.26746279,3411.7,3411.6,0.8052]
[1735657702514,0.26746279,3411.7,3411.6,0.86193576]
[1735657702811,0.26749612,3411.7,3411.6,0.81193576]
[1735657703017,0.26749612,3411.7,3411.6,3.74310576]
[1735657703213,3.82736732,3413.5,3411.6,5.81193576]
[1735657703464,0.8017,3413.7,3411.7,0.58119358]
[1735657703617,0.8017,3413.7,3411.8,2.931]
[1735657703618,3.73115,3413.7,3411.8,2.931]
[1735657703815,2.92954,3413.5,3411.8,2.98769895]
[1735657704076,0.53387542,3413.6,3411.8,2.98769895]
[1735657704218,0.53387542,3413.6,3411.8,0.05669895]
[1735657704416,3.82736732,3413.0,3411.9,0.35689025]
[1735657704622,5.93091,3411.9,3411.8,0.05669895]
[1735657704815,2.9312,3411.6,3410.7,0.91814549]
[1735657705061,2.93126,3411.5,3410.7,0.91814549]
[1735657705259,2.93126,3411.5,3410.8,0.05498186]
[1735657705260,3.82736732,3411.5,3410.8,0.05498186]
[1735657705465,5.93177,3410.9,3410.8,0.05498186]
[1735657705667,3.0,3411.1,3410.7,0.91814549]
[1735657705839,0.26694684,3410.9,3410.7,0.91814549]
[1735657706465,0.26694684,3410.9,3410.8,0.05498186]
[1735657706666,3.0,3410.9,3410.8,0.05498186]
[1735657706964,3.73356,3410.8,3410.0,0.157213]
[1735657707132,2.93229,3410.3,3410.0,0.157213]
[1735657707337,6.73399,3410.3,3410.0,0.157213]
[1735657707547,6.73399,3410.3,3410.2,1e-05]
[1735657707863,6.99976096,3410.3,3410.2,1e-05]
[1735657708022,7.26491135,3410.3,3410.2,1e-05]
[1735657708223,3.53092135,3410.3,3410.2,1e-05]
[1735657708419,6.19744039,3410.3,3410.2,1e-05]
[1735657708713,3.0,3410.3,3410.2,1e-05]
[1735657708964,0.8017,3411.3,3410.2,1e-05]
[1735657709149,3.8017,3411.3,3410.2,1e-05]
[1735657709357,0.26490007,3411.2,3410.2,1e-05]
[1735657709563,0.26490007,3411.2,3410.3,0.8067]
[1735657709752,3.82736732,3411.9,3410.3,0.8067]
[1735657709753,2.93134,3411.4,3410.3,0.8067]
[1735657709939,3.0,3411.3,3410.4,0.06063243]
[1735657710137,2.93143,3411.3,3410.3,0.8067]
[1735657710340,3.73276,3411.8,3410.4,0.06063243]
[1735657710569,2.93115,3411.7,3410.3,0.8067]
[1735657710753,3.19609634,3411.7,3410.3,0.8067]
[1735657710938,2.93174,3411.0,3410.3,0.8067]
[1735657711144,2.93174,3411.0,3410.4,0.06063243]
[1735657711659,2.93192,3410.8,3410.4,0.06063243]
[1735657711972,2.93192,3410.8,3410.2,1e-05]
[1735657712278,6.82736732,3411.4,3410.2,1e-05]
[1735657712520,2.93195,3410.7,3410.2,1e-05]
[1735657712797,3.0,3411.2,3410.3,0.06065085]
[1735657713010,3.0,3411.7,3410.3,0.06065085]
[1735657713181,2.93127,3411.5,3410.3,2.93228]
[1735657713499,2.93118,3411.6,3410.4,3.225399]
[1735657713701,2.93073,3412.2,3410.9,2.93174]
[1735657714001,2.93073,3412.2,3410.7,0.8067]
[1735657714002,2.93072,3412.2,3411.0,0.06052195]
[1735657714182,0.8017,3412.9,3411.0,0.06052195]
[1735657714341,2.93033,3412.6,3411.3,2.93139]
[1735657714545,2.93033,3412.6,3411.4,3.36554732]
[1735657714745,0.8017,3412.9,3411.4,0.43425732]
[1735657715050,2.92976,3413.3,3411.4,0.43425732]
[1735657715051,3.82736732,3413.0,3411.4,0.06044832]
[1735657715249,2.93084,3412.0,3411.2,0.8067]
[1735657715514,3.0,3411.9,3411.2,0.8067]
[1735657715796,2.93091,3411.9,3411.3,0.06046672]
[1735657715998,0.8017,3412.6,3411.3,0.06046672]
[1735657716146,2.931,3411.9,3411.2,0.8067]
[1735657716341,2.931,3411.9,3411.3,0.0591255]
[1735657716540,3.0,3412.0,3411.3,0.0591255]
[1735657716958,2.93073,3412.2,3411.3,0.0591255]
[1735657717142,2.9305,3412.4,3411.2,0.8067]
[1735657717566,0.26537297,3412.3,3411.2,0.8067]
[1735657717800,0.26537297,3412.3,3411.3,0.0591255]
[1735657717962,0.26537297,3412.3,3411.4,0.7627]
[1735657718166,2.93006,3412.9,3411.7,2.93106]
[1735657718371,2.93037,3412.6,3411.8,1.06171487]
[1735657718712,3.0,3412.6,3411.8,0.8217614]
[1735657719003,2.93039,3412.6,3411.8,0.7627]
[1735657719384,3.0,3412.9,3411.8,0.7627]
[1735657719591,3.0,3412.6,3411.9,0.059043]
[1735657719905,2.93036,3412.6,3411.8,0.7627]
[1735657720131,3.0,3412.2,3411.9,0.05752027]
[1735657720336,3.0,3412.2,3411.8,0.7627]
[1735657720534,3.0,3412.2,3411.9,0.05752027]
[1735657720682,3.0,3412.2,3411.8,0.7627]
[1735657720995,0.7608,3413.9,3412.5,0.7627]
[1735657721425,2.9301,3412.9,3412.5,0.7627]
[1735657721597,3.0,3413.1,3412.5,0.7627]
[1735657721796,0.26674819,3412.8,3412.6,0.05739149]
[1735657722128,0.26674819,3412.8,3412.7,0.05737309]
[1735657722445,2.93031,3412.6,3412.5,0.7627]
[1735657722576,0.26674819,3412.8,3412.7,0.05737309]
[1735657722577,6.46399113,3412.8,3412.7,0.05737309]
[1735657722892,2.93063,3412.3,3411.1,3.69425]
[1735657723106,2.93063,3412.3,3411.2,2.9891591]
[1735657723272,0.53385113,3412.8,3411.2,2.9891591]
[1735657723273,3.0,3412.4,3411.2,0.0576491]
[1735657723476,0.26674819,3412.2,3411.2,0.43286101]
[1735657723728,0.26674819,3412.2,3411.3,0.7627]
[1735657723873,0.26674819,3412.2,3411.4,0.05709575]
[1735657724084,0.26674819,3412.2,3411.4,2.98842575]
[1735657724284,0.26710294,3412.1,3411.7,2.93101]
[1735657724481,0.26674819,3412.2,3411.8,0.05728735]
[1735657724686,0.26674819,3412.0,3411.8,2.93097]
[1735657724995,0.26674819,3412.0,3411.9,4.04397595]
[1735657725389,2.92975,3413.3,3411.9,1.11306595]